fUSD/lending_fUSD_20240114
["ID","MTS","AMOUNT","RATE_DAILY","PERIOD"]
[311608023,1705264337183,-690.19,0.00032876,2]
[311608024,1705264337193,-1000.0,0.00032876,2]
[311608025,1705264337202,-1000.0,0.00032876,2]
[311608026,1705264337212,-1000.0,0.00032876,2]
[311608027,1705264337222,-500.0,0.00032876,2]
[311608028,1705264337232,-1000.0,0.00032876,2]
[311608029,1705264337242,-1000.0,0.00032876,2]
[311608030,1705264337253,-1000.0,0.00032876,2]
[311608031,1705264337262,-500.0,0.00032876,2]
[311608032,1705264337272,-285.13151198,0.00032876,2]
[311608033,1705264337281,-688.38,0.00032876,2]
[311608034,1705264337292,-619.28,0.00032876,2]
[311608035,1705264337303,-529.02,0.00032876,2]
[311608036,1705264337313,-779.6,0.00032876,2]
[311608037,1705264337325,-500.0,0.00032876,2]
[311608038,1705264337335,-1160.15,0.00032876,2]
[311608039,1705264337346,-1042.53,0.00032876,2]
[311608040,1705264337355,-500.0,0.00032876,2]
[311608041,1705264337364,-500.0,0.00032876,2]
[311608042,1705264337375,-500.0,0.00032876,2]
[311608043,1705264337384,-790.69,0.00032876,2]
[311608044,1705264337393,-684.1,0.00032876,2]
[311608045,1705264337403,-647.62,0.00032876,2]
[311608046,1705264337412,-500.0,0.00032876,2]
[311608047,1705264337421,-500.0,0.00032876,2]
[311608048,1705264337430,-500.0,0.00032876,2]
[311608049,1705264337439,-3167.32,0.00032876,2]
[311608050,1705264337449,-571.94,0.00032876,2]
[311608051,1705264337458,-567.97,0.00032876,2]
[311608052,1705264337468,-522.59,0.00032876,2]
[311608053,1705264337477,-500.0,0.00032876,2]
[311608054,1705264337487,-500.0,0.00032876,2]
[311608055,1705264337496,-774.9,0.00032876,2]
[311608056,1705264337506,-500.0,0.00032876,2]
[311608057,1705264337515,-1088.65,0.00032876,2]
[311608058,1705264337525,-500.0,0.00032876,2]
[311608059,1705264337535,-884.91,0.00032876,2]
[311608060,1705264337545,-537.49,0.00032876,2]
[311608061,1705264337554,-1154.9,0.00032876,2]
[311608062,1705264337564,-500.0,0.00032876,2]
[311608063,1705264337573,-500.0,0.00032876,2]
[311608064,1705264337583,-766.25,0.00032876,2]
[311608065,1705264337593,-500.0,0.00032876,2]
[311608066,1705264337603,-500.0,0.00032876,2]
[311608067,1705264337612,-500.0,0.00032876,2]
[311608068,1705264337621,-739.11,0.00032876,2]
[311608069,1705264337631,-500.0,0.00032876,2]
[311608070,1705264337642,-2842.79,0.00032876,2]
[311608071,1705264337652,-703.48,0.00032876,2]
[311608072,1705264337662,-500.0,0.00032876,2]
[311608073,1705264337671,-500.0,0.00032876,2]
[311608074,1705264337681,-755.21,0.00032876,2]
[311608075,1705264337691,-655.3,0.00032876,2]
[311608076,1705264337701,-500.0,0.00032876,2]
[311608077,1705264337710,-500.0,0.00032876,2]
[311608078,1705264337721,-649.3,0.00032876,2]
[311608079,1705264337732,-500.0,0.00032876,2]
[311608080,1705264337742,-1021.39,0.00032876,2]
[311608081,1705264337752,-500.0,0.00032876,2]
[311608082,1705264337762,-1175.51,0.00032876,2]
[311608083,1705264337772,-500.0,0.00032876,2]
[311608084,1705264337782,-701.34,0.00032876,2]
[311608085,1705264337792,-1477.05,0.00032876,2]
[311608086,1705264337802,-686.32,0.00032876,2]
[311608087,1705264337812,-956.76,0.00032876,2]
[311608088,1705264337822,-500.0,0.00032876,2]
[311608089,1705264337832,-500.0,0.00032876,2]
[311608090,1705264337841,-500.0,0.00032876,2]
[311608091,1705264337851,-601.17,0.00032876,2]
[311608092,1705264337861,-1476.27,0.00032876,2]
[311608093,1705264337872,-500.0,0.00032876,2]
[311608094,1705264337882,-1151.69,0.00032876,2]
[311608095,1705264337892,-1030.11,0.00032876,2]
[311608096,1705264337902,-815.37,0.00032876,2]
[311608097,1705264337911,-437.72260607,0.00032876,2]
[311608098,1705264337921,-500.0,0.00032876,2]
[311608099,1705264337931,-1060.69,0.00032876,2]
[311608100,1705264337941,-500.0,0.00032876,2]
[311608101,1705264337950,-500.0,0.00032876,2]
[311608102,1705264337960,-663.4,0.00032876,2]
[311608103,1705264337969,-500.0,0.00032876,2]
[311608104,1705264337979,-1567.33,0.00032876,2]
[311608105,1705264337988,-507.53,0.00032876,2]
[311608106,1705264337998,-690.39,0.00032876,2]
[311608107,1705264338008,-1087.14,0.00032876,2]
[311608108,1705264338018,-780.22,0.00032876,2]
[311608109,1705264338027,-1031.89,0.00032876,2]
[311608110,1705264338037,-15692.02,0.00032876,2]
[311608111,1705264338047,-720.95,0.00032876,2]
[311608112,1705264338057,-968.33,0.00032876,2]
[311608113,1705264338067,-500.0,0.00032876,2]
[311608114,1705264338077,-4778.91,0.00032876,2]
[311608115,1705264338087,-4080.55,0.00032876,2]
[311608116,1705264338097,-500.0,0.00032876,2]
[311608117,1705264338107,-524.66,0.00032876,2]
[311608118,1705264338116,-1610.45,0.00032876,2]
[311608119,1705264338126,-1037.02,0.00032876,2]
[311608120,1705264338136,-500.0,0.00032876,2]
[311608121,1705264338146,-500.0,0.00032876,2]
[311608122,1705264338156,-753.69,0.00032876,2]
[311608123,1705264338168,-512.48,0.00032876,2]
[311608124,1705264338179,-819.18,0.00032876,2]
[311608125,1705264338189,-658.91,0.00032876,2]
[311608126,1705264338199,-500.0,0.00032876,2]
[311608127,1705264338209,-922.23,0.00032876,2]
[311608128,1705264338219,-1259.43,0.00032876,2]
[311608129,1705264338229,-908.29,0.00032876,2]
[311608130,1705264338239,-500.0,0.00032876,2]
[311608131,1705264338249,-500.0,0.00032876,2]
[311608132,1705264338259,-500.0,0.00032876,2]
[311608133,1705264338269,-1934.5,0.00032876,2]
[311608134,1705264338279,-1783.71,0.00032876,2]
[311608135,1705264338289,-1552.56,0.00032876,2]
[311608136,1705264338299,-636.5701965,0.00032876,2]
[311608137,1705264338310,-813.78,0.00032876,2]
[311608138,1705264338321,-508.7,0.00032876,2]
[311608139,1705264338332,-1672.88,0.00032876,2]
[311608140,1705264338341,-887.69,0.00032876,2]
[311608141,1705264338351,-1249.33,0.00032876,2]
[311608142,1705264338363,-1426.72,0.00032876,2]
[311608143,1705264338372,-1118.87,0.00032876,2]
[311608144,1705264338382,-5627.11,0.00032876,2]
[311608145,1705264338392,-1369.47,0.00032876,2]
[311608146,1705264338403,-575.47,0.00032876,2]
[311608147,1705264338413,-570.84,0.00032876,2]
[311608148,1705264338423,-567.98,0.00032876,2]
[311608149,1705264338434,-552.23,0.00032876,2]
[311608150,1705264338446,-599.67,0.00032876,2]
[311608151,1705264338457,-577.96495162,0.00032876,2]
[311608152,1705264338467,-682.29,0.00032876,2]
[311608153,1705264338477,-2554.34,0.00032876,2]
[311608154,1705264338487,-799.56,0.00032876,2]
[311608155,1705264338497,-1153.92,0.00032876,2]
[311608156,1705264338507,-1798.17,0.00032876,2]
[311608157,1705264338517,-2674.9,0.00032876,2]
[311608158,1705264338527,-4747.99,0.00032876,2]
[311608159,1705264338538,-874.04,0.00032876,2]
[311608160,1705264338548,-3082.22,0.00032876,2]
[311608161,1705264338558,-500.0,0.00032876,2]
[311608162,1705264338568,-537.8,0.00032876,2]
[311608163,1705264338578,-522.44,0.00032876,2]
[311608164,1705264338588,-2400.47,0.00032876,2]
[311608165,1705264338598,-1501.1,0.00032876,2]
[311608166,1705264338608,-953.45,0.00032876,2]
[311608167,1705264338618,-1591.7,0.00032876,2]
[311608168,1705264338628,-500.0,0.00032876,2]
[311608169,1705264338638,-1195.23,0.00032876,2]
[311608170,1705264338649,-500.0,0.00032876,2]
[311608171,1705264338661,-830.52,0.00032876,2]
[311608172,1705264338671,-645.86,0.00032876,2]
[311608173,1705264338681,-500.0,0.00032876,2]
[311608174,1705264338691,-500.0,0.00032876,2]
[311608175,1705264338701,-1563.61,0.00032876,2]
[311608176,1705264338711,-800.79,0.00032876,2]
[311608177,1705264338721,-800.79,0.00032876,2]
[311608178,1705264338731,-552.65,0.00032876,2]
[311608179,1705264338740,-800.79,0.00032876,2]
[311608180,1705264338749,-800.79,0.00032876,2]
[311608181,1705264338759,-800.79,0.00032876,2]
[311608182,1705264338769,-800.79,0.00032876,2]
[311608183,1705264338779,-800.79,0.00032876,2]
[311608184,1705264338789,-800.79,0.00032876,2]
[311608185,1705264338800,-800.79,0.00032876,2]
[311608186,1705264338810,-1788.89,0.00032876,2]
[311608187,1705264338820,-800.79,0.00032876,2]
[311608188,1705264338830,-3852.95,0.00032876,2]
[311608189,1705264339097,-319.26361549,0.00032876,2]
[311608190,1705264339107,-800.79,0.00032876,2]
[311608191,1705264339117,-3780.57,0.00032876,2]
[311608192,1705264339126,-689.0,0.00032876,2]
[311608193,1705264339136,-1026.83,0.00032876,2]
[311608194,1705264339145,-1077.68,0.00032876,2]
[311608195,1705264339156,-543.18,0.00032876,2]
[311608196,1705264339170,-500.0,0.00032876,2]
[311608197,1705264339180,-246.1,0.00032876,2]
[311608198,1705264339189,-3887.42,0.00032876,2]
[311608199,1705264339200,-706.36,0.00032876,2]
[311608200,1705264339211,-8222.74,0.00032876,2]
[311608201,1705264339221,-1212.77,0.00032876,2]
[311608202,1705264339231,-1605.08,0.00032876,2]
[311608203,1705264339241,-500.0,0.00032876,2]
[311608204,1705264339252,-3010.13,0.00032876,2]
[311608205,1705264339262,-500.0,0.00032876,2]
[311608206,1705264339272,-967.6,0.00032876,2]
[311608207,1705264339282,-3703.12,0.00032876,2]
[311608208,1705264339291,-583.22,0.00032876,2]
[311608209,1705264339303,-379.68,0.00032876,2]
[311608210,1705264339312,-30649.83,0.00032876,2]
[311608211,1705264339323,-3434.07,0.00032876,2]
[311608212,1705264339334,-500.0,0.00032876,2]
[311608213,1705264339344,-913.46,0.00032876,2]
[311608214,1705264339353,-965.74,0.00032876,2]
[311608215,1705264339362,-842.61,0.00032876,2]
[311608216,1705264339372,-390.30808461,0.00032876,2]
[311608217,1705264339381,-1729.11,0.00032876,2]
[311608218,1705264339391,-11897.09,0.00032876,2]
[311608219,1705264339400,-6230.07,0.00032876,2]
[311608220,1705264339411,-1027.7,0.00032876,2]
[311608221,1705264339420,-1130.45,0.00032876,2]
[311608222,1705264339429,-500.0,0.00032876,2]
[311608223,1705264339439,-1353.14,0.00032876,2]
[311608224,1705264339448,-500.0,0.00032876,2]
[311608225,1705264339458,-500.0,0.00032876,5]
[311608226,1705264339467,-500.0,0.00032876,2]
[311608227,1705264339477,-3435.49,0.00032876,2]
[311608228,1705264339486,-500.0,0.00032876,2]
[311608229,1705264339496,-573.71,0.00032876,2]
[311608230,1705264339505,-2448.9,0.00032876,2]
[311608231,1705264339516,-644.33,0.00032876,2]
[311608232,1705264339526,-3036.82,0.00032876,2]
[311608233,1705264339536,-597.1,0.00032876,2]
[311608234,1705264339545,-750.17,0.00032876,2]
[311608235,1705264339557,-2478.07,0.00032876,2]
[311608236,1705264339567,-828.04,0.00032876,2]
[311608237,1705264339577,-1871.96,0.00032876,2]
[311608238,1705264339587,-801.45,0.00032876,2]
[311608239,1705264339596,-1895.33,0.00032876,2]
[311608240,1705264339606,-1560.14,0.00032876,2]
[311608241,1705264339615,-3224.85,0.00032876,2]
[311608242,1705264339625,-533.31,0.00032876,2]
[311608243,1705264339634,-500.0,0.00032876,2]
[311608244,1705264339644,-500.0,0.00032876,2]
[311608245,1705264339655,-5325.11,0.00032876,2]
[311608246,1705264339664,-949.53,0.00032876,2]
[311608247,1705264339674,-1784.8,0.00032876,2]
[311608248,1705264339683,-730.14,0.00032876,2]
[311608249,1705264339693,-1488.85,0.00032876,2]
[311608250,1705264339702,-2331.02,0.00032876,2]
[311608251,1705264339713,-847.15,0.00032876,2]
[311608252,1705264339722,-787.16,0.00032876,2]
[311608253,1705264339732,-841.76,0.00032876,2]
[311608254,1705264339742,-1513.17,0.00032876,2]
[311608255,1705264339752,-524.76,0.00032876,2]
[311608256,1705264339761,-1046.23,0.00032876,2]
[311608257,1705264339770,-1523.32,0.00032876,2]
[311608258,1705264339780,-611.14,0.00032876,2]
[311608259,1705264339790,-4188.56,0.00032876,2]
[311608260,1705264339799,-2000.73,0.00032876,2]
[311608261,1705264339808,-1059.93,0.00032876,2]
[311608262,1705264339817,-1556.83,0.00032876,2]
[311608263,1705264339827,-1572.81,0.00032876,2]
[311608264,1705264339836,-559.75,0.00032876,2]
[311608265,1705264339846,-593.18,0.00032876,2]
[311608266,1705264339856,-790.76,0.00032876,2]
[311608267,1705264339865,-99.9350433,0.00032876,2]
[311608268,1705264340721,-622.2549567,0.00032876,2]
[311608269,1705264340731,-1160.27,0.00032876,2]
[311608270,1705264340741,-10911.16,0.00032876,2]
[311608271,1705264340751,-1333.04,0.00032876,2]
[311608272,1705264340761,-2072.02,0.00032876,2]
[311608273,1705264340771,-500.0,0.00032876,2]
[311608274,1705264340781,-4765.57,0.00032876,2]
[311608275,1705264340791,-711.46,0.00032876,2]
[311608276,1705264340801,-500.0,0.00032876,2]
[311608277,1705264340811,-568.95,0.00032876,2]
[311608278,1705264340821,-1038.07,0.00032876,2]
[311608279,1705264340831,-245.14420989,0.00032876,2]
[311608280,1705264340841,-6925.8,0.00032876,2]
[311608281,1705264340852,-7269.33,0.00032876,2]
[311608282,1705264340862,-500.0,0.00032876,2]
[311608283,1705264340872,-775.66,0.00032876,2]
[311608284,1705264340883,-1868.67,0.00032876,2]
[311608285,1705264340893,-1572.91,0.00032876,2]
[311608286,1705264340905,-1049.48,0.00032876,2]
[311608287,1705264340914,-756.09,0.00032876,2]
[311608288,1705264340925,-500.0,0.00032876,2]
[311608289,1705264340935,-1179.24,0.00032876,2]
[311608290,1705264340945,-1088.94,0.00032876,2]
[311608291,1705264340955,-660.67,0.00032876,2]
[311608292,1705264340965,-1736.87,0.00032876,2]
[311608293,1705264340975,-500.0,0.00032876,2]
[311608294,1705264340985,-1917.76,0.00032876,2]
[311608295,1705264340995,-1883.84,0.00032876,2]
[311608296,1705264341005,-500.0,0.00032876,2]
[311608297,1705264341015,-500.0,0.00032876,2]
[311608298,1705264341024,-3549.24,0.00032876,2]
[311608299,1705264341034,-1639.07,0.00032876,2]
[311608300,1705264341044,-726.79,0.00032876,2]
[311608301,1705264341054,-500.0,0.00032876,2]
[311608302,1705264341064,-500.0,0.00032876,2]
[311608303,1705264341073,-1673.99,0.00032876,2]
[311608304,1705264341084,-3692.47,0.00032876,2]
[311608305,1705264341094,-1877.85,0.00032876,2]
[311608306,1705264341105,-19757.41,0.00032876,2]
[311608307,1705264341114,-500.0,0.00032876,2]
[311608308,1705264341125,-2271.06,0.00032876,2]
[311608309,1705264341136,-500.0,0.00032876,2]
[311608310,1705264341146,-2078.93,0.00032876,2]
[311608311,1705264341158,-766.43,0.00032876,2]
[311608312,1705264341169,-862.55,0.00032876,2]
[311608313,1705264341181,-1101.05,0.00032876,2]
[311608314,1705264341191,-1066.09,0.00032876,2]
[311608315,1705264341201,-1259.5,0.00032876,2]
[311608316,1705264341212,-648.66,0.00032876,2]
[311608317,1705264341222,-500.0,0.00032876,2]
[311608318,1705264341233,-3155.7,0.00032876,2]
[311608319,1705264341243,-500.0,0.00032876,2]
[311608320,1705264341253,-541.14,0.00032876,2]
[311608321,1705264341265,-500.0,0.00032876,2]
[311608322,1705264341275,-1899.34,0.00032876,2]
[311608323,1705264341286,-1672.54,0.00032876,2]
[311608324,1705264341296,-612.36,0.00032876,2]
[311608325,1705264341306,-500.0,0.00032876,2]
[311608326,1705264341317,-500.0,0.00032876,2]
[311608327,1705264341328,-1740.09,0.00032876,2]
[311608328,1705264341337,-920.75,0.00032876,2]
[311608329,1705264341347,-3991.14,0.00032876,2]
[311608330,1705264341357,-1101.91,0.00032876,2]
[311608331,1705264341367,-10488.2,0.00032876,2]
[311608332,1705264341377,-956.24,0.00032876,2]
[311608333,1705264341387,-1103.01,0.00032876,2]
[311608334,1705264341396,-1042.12,0.00032876,2]
[311608335,1705264341408,-896.85,0.00032876,2]
[311608336,1705264341418,-3953.12,0.00032876,2]
[311608337,1705264341428,-500.0,0.00032876,2]
[311608338,1705264341438,-500.0,0.00032876,2]
[311608339,1705264341447,-500.0,0.00032876,2]
[311608340,1705264341458,-1033.26,0.00032876,2]
[311608341,1705264341468,-2574.62,0.00032876,2]
[311608342,1705264341478,-1533.7,0.00032876,2]
[311608343,1705264341488,-882.31,0.00032876,2]
[311608344,1705264341498,-2093.22,0.00032876,2]
[311608345,1705264341508,-1449.1,0.00032876,2]
[311608346,1705264341518,-664.21,0.00032876,2]
[311608347,1705264341528,-526.99,0.00032876,2]
[311608348,1705264341539,-808.11,0.00032876,2]
[311608349,1705264341549,-2286.6,0.00032876,2]
[311608350,1705264341558,-500.0,0.00032876,2]
[311608351,1705264341568,-1602.23,0.00032876,2]
[311608352,1705264341578,-531.09,0.00032876,2]
[311608353,1705264341588,-732.92,0.00032876,2]
[311608354,1705264341598,-567.37,0.00032876,2]
[311608355,1705264341608,-500.0,0.00032876,2]
[311608356,1705264341617,-2009.84,0.00032876,2]
[311608357,1705264341627,-918.48,0.00032876,2]
[311608358,1705264341637,-1108.45,0.00032876,2]
[311608359,1705264341647,-1201.65,0.00032876,2]
[311608360,1705264341658,-4796.3,0.00032876,2]
[311608361,1705264341668,-512.33,0.00032876,2]
[311608362,1705264341677,-2156.48,0.00032876,2]
[311608363,1705264341687,-500.0,0.00032876,2]
[311608364,1705264341697,-549.32,0.00032876,2]
[311608365,1705264341707,-596.78,0.00032876,2]
[311608366,1705264341717,-2657.18,0.00032876,2]
[311608367,1705264341727,-723.46,0.00032876,2]
[311608368,1705264341867,-539.01,0.00032876,2]
[311608369,1705264341877,-1641.51,0.00032876,2]
[311608370,1705264341887,-2203.79,0.00032876,2]
[311608371,1705264341897,-500.0,0.00032876,2]
[311608372,1705264341907,-2139.26,0.00032876,2]
[311608373,1705264341916,-1057.67,0.00032876,2]
[311608374,1705264341925,-1109.41,0.00032876,2]
[311608375,1705264341935,-3320.2,0.00032876,2]
[311608376,1705264341944,-199.61009961,0.00032876,7]
[311608377,1705264341954,-325.79515493,0.00032876,7]
[311608378,1705264341964,-294.22553859,0.00032876,7]
[311608379,1705264341973,-500.0,0.00032876,2]
[311608380,1705264341983,-500.0,0.00032876,7]
[311608381,1705264341993,-737.03184585,0.00032876,7]
[311608382,1705264342003,-457.20860533,0.00032876,7]
[311608383,1705264342012,-737.03184585,0.00032876,7]
[311608384,1705264342022,-737.03184585,0.00032876,7]
[311608385,1705264342031,-737.03184585,0.00032876,7]
[311608386,1705264342041,-737.03184585,0.00032876,7]
[311608387,1705264342051,-737.03184585,0.00032876,7]
[311608388,1705264342060,-737.03184585,0.00032876,7]
[311608389,1705264342070,-737.03184585,0.00032876,7]
[311608390,1705264342080,-737.03184585,0.00032876,7]
[311608391,1705264342090,-737.03184585,0.00032876,7]
[311608392,1705264342100,-737.03184585,0.00032876,7]
[311608393,1705264342110,-737.03184585,0.00032876,7]
[311608394,1705264342119,-737.03184585,0.00032876,7]
[311608395,1705264342128,-737.03184585,0.00032876,7]
[311608396,1705264342138,-737.03184585,0.00032876,7]
[311608397,1705264342147,-737.03184585,0.00032876,7]
[311608398,1705264342158,-737.03184585,0.00032876,7]
[311608399,1705264342168,-737.03184585,0.00032876,7]
[311608400,1705264342180,-153.84,0.00032877,2]
[311608401,1705264342190,-621.19,0.00032877,15]
[311608402,1705264342199,-18974.59,0.00032877,2]
[311608403,1705264342209,-150.0,0.00032877,2]
[311608404,1705264342218,-1403.261193,0.00032877,2]
[311608405,1705264342227,-1403.261193,0.00032877,2]
[311608406,1705264342237,-1403.261193,0.00032877,2]
[311608407,1705264342248,-1403.261193,0.00032877,2]
[311608408,1705264342257,-1403.261193,0.00032877,2]
[311608409,1705264342267,-1403.261193,0.00032877,2]
[311608410,1705264342276,-1403.261193,0.00032877,2]
[311608411,1705264342285,-1403.261193,0.00032877,2]
[311608412,1705264342295,-1403.261193,0.00032877,2]
[311608413,1705264342304,-1403.261193,0.00032877,2]
[311608414,1705264342313,-1403.261193,0.00032877,2]
[311608415,1705264342322,-1403.261193,0.00032877,2]
[311608416,1705264342331,-1403.261193,0.00032877,2]
[311608417,1705264342341,-1403.261193,0.00032877,2]
[311608418,1705264342350,-1403.261193,0.00032877,2]
[311608419,1705264342359,-1403.261193,0.00032877,2]
[311608420,1705264342369,-1403.261193,0.00032877,2]
[311608421,1705264342378,-1403.261193,0.00032877,2]
[311608422,1705264342388,-1403.261193,0.00032877,2]
[311608423,1705264342397,-1403.261193,0.00032877,2]
[311608424,1705264342406,-1403.261193,0.00032877,2]
[311608425,1705264342415,-1403.261193,0.00032877,2]
[311608426,1705264342424,-1403.261193,0.00032877,2]
[311608427,1705264342433,-1403.261193,0.00032877,2]
[311608428,1705264342443,-1403.261195,0.00032877,2]
[311608429,1705264342452,-169.14057872,0.00032877,2]
[311608430,1705264342462,-3000.0,0.000329,2]
[311608431,1705264342471,-1000.0,0.000329,2]
[311608432,1705264342481,-777.0,0.000329,2]
[311608433,1705264342491,-340.0,0.000329,2]
[311608434,1705264342500,-972.0,0.000329,2]
[311608435,1705264342510,-262.0,0.000329,2]
[311608436,1705264342520,-500.0,0.000329,2]
[311608437,1705264342530,-852.37,0.00032901,2]
[311608438,1705264342539,-200.0,0.00032987,4]
[311608439,1705264342548,-211.4458743,0.00032999,7]
[311608440,1705264342558,-500.0,0.00032999,7]
[311608441,1705264342567,-363.68225058,0.00032999,7]
[311608442,1705264342577,-100000.0,0.00033,3]
[311608443,1705264342586,-1000.0,0.00033,3]
[311608444,1705264342595,-550.0,0.00033,3]
[311608445,1705264342605,-150.14,0.00033,2]
[311608446,1705264342614,-150.14,0.00033,2]
[311608447,1705264342623,-150.14,0.00033,2]
[311608448,1705264342633,-150.14,0.00033,2]
[311608449,1705264342642,-150.14,0.00033,2]
[311608450,1705264342652,-150.14,0.00033,2]
[311608451,1705264342663,-150.14,0.00033,2]
[311608452,1705264342672,-150.14,0.00033,2]
[311608453,1705264342682,-150.14,0.00033,2]
[311608454,1705264342692,-150.14,0.00033,2]
[311608455,1705264342701,-150.14,0.00033,2]
[311608456,1705264342711,-150.14,0.00033,2]
[311608457,1705264342721,-150.14,0.00033,2]
[311608458,1705264342731,-150.14,0.00033,2]
[311608459,1705264342740,-150.14,0.00033,2]
[311608460,1705264342749,-150.14,0.00033,2]
[311608461,1705264342759,-150.14,0.00033,2]
[311608462,1705264342769,-150.14,0.00033,2]
[311608463,1705264342779,-150.14,0.00033,2]
[311608464,1705264342793,-150.14,0.00033,2]
[311608465,1705264342802,-150.14,0.00033,2]
[311608466,1705264342812,-150.14,0.00033,2]
[311608467,1705264342822,-150.14,0.00033,2]
[311608468,1705264342832,-150.14,0.00033,2]
[311608469,1705264342841,-150.14,0.00033,2]
[311608470,1705264342851,-150.14,0.00033,2]
[311608471,1705264342860,-150.14,0.00033,2]
[311608472,1705264342870,-150.14,0.00033,2]
[311608473,1705264342880,-150.14,0.00033,2]
[311608474,1705264342889,-150.14,0.00033,2]
[311608475,1705264342898,-150.14,0.00033,2]
[311608476,1705264342908,-150.14,0.00033,2]
[311608477,1705264342917,-150.14,0.00033,2]
[311608478,1705264342926,-150.14,0.00033,2]
[311608479,1705264342936,-150.14,0.00033,2]
[311608480,1705264342945,-150.14,0.00033,2]
[311608481,1705264342954,-150.14,0.00033,2]
[311608482,1705264342964,-150.14,0.00033,2]
[311608483,1705264342973,-150.14,0.00033,2]
[311608484,1705264342983,-150.14,0.00033,2]
[311608485,1705264342993,-150.14,0.00033,2]
[311608486,1705264343002,-150.14,0.00033,2]
[311608487,1705264343012,-150.14,0.00033,2]
[311608488,1705264343021,-150.14,0.00033,2]
[311608489,1705264343030,-50000.0,0.0003309,10]
[311608490,1705264343039,-500.0,0.0003315,2]
[311608491,1705264343048,-500.0,0.0003315,2]
[311608492,1705264343059,-500.0,0.0003315,2]
[311608493,1705264343068,-500.0,0.0003315,2]
[311608494,1705264343077,-500.0,0.0003315,2]
[311608495,1705264343086,-500.0,0.0003315,2]
[311608496,1705264343095,-500.0,0.0003315,2]
[311608497,1705264343104,-500.0,0.0003315,2]
[311608498,1705264343113,-522.7,0.0003315,2]
[311608499,1705264343123,-500.0,0.0003315,2]
[311608500,1705264343133,-500.0,0.0003315,2]
[311608501,1705264343144,-543.8,0.0003315,2]
[311608502,1705264343154,-500.0,0.0003315,2]
[311608503,1705264343164,-518.27,0.0003315,2]
[311608504,1705264343174,-500.0,0.0003315,2]
[311608505,1705264343183,-512.56,0.0003315,2]
[311608506,1705264343192,-500.0,0.0003315,2]
[311608507,1705264343202,-528.06,0.0003315,2]
[311608508,1705264343211,-500.0,0.0003315,2]
[311608509,1705264343220,-538.04,0.0003315,2]
[311608510,1705264343229,-500.0,0.0003315,2]
[311608511,1705264343238,-500.0,0.0003315,2]
[311608512,1705264343249,-829.92,0.0003315,2]
[311608513,1705264343257,-500.0,0.0003315,2]
[311608514,1705264343267,-500.0,0.0003315,2]
[311608515,1705264343276,-831.82,0.0003315,2]
[311608516,1705264343286,-500.0,0.0003315,2]
[311608517,1705264343295,-753.34,0.0003315,2]
[311608518,1705264343304,-500.0,0.0003315,2]
[311608519,1705264343313,-716.55,0.0003315,2]
[311608520,1705264343323,-500.0,0.0003315,2]
[311608521,1705264343333,-500.0,0.0003315,2]
[311608522,1705264343343,-500.0,0.0003315,2]